bitfinex/quotes_BTCUSD_20250519
["timestamp","ask_amount","ask_price","bid_price","bid_amount"]
[1747657076939,1.0595773,102560.0,102550.0,0.02004805]
[1747657078084,1.0594173,102560.0,102550.0,0.02004805]
[1747657078304,0.5180973,102560.0,102550.0,0.02004805]
[1747657078488,0.7197773,102560.0,102550.0,0.04374805]
[1747657079123,0.7157773,102560.0,102550.0,0.04374805]
[1747657079477,0.7187773,102560.0,102550.0,0.04374805]
[1747657080318,0.7147773,102560.0,102550.0,0.04374805]
[1747657080758,0.7177773,102560.0,102550.0,0.04374805]
[1747657081752,0.3178173,102560.0,102550.0,0.0582889]
[1747657081960,0.7180573,102560.0,102550.0,0.06072648]
[1747657082184,0.3178173,102560.0,102550.0,0.02004805]
[1747657082398,0.59979067,102560.0,102550.0,0.02004805]
[1747657082616,0.59679067,102560.0,102550.0,0.02004805]
[1747657082840,0.99823067,102560.0,102550.0,0.02004805]
[1747657083127,0.99923067,102560.0,102550.0,0.02104805]
[1747657083330,0.99983067,102560.0,102550.0,0.02104805]
[1747657083523,0.99683067,102560.0,102550.0,0.02104805]
[1747657083928,0.99683067,102560.0,102550.0,0.02204805]
[1747657083929,2.03623067,102560.0,102550.0,0.02204805]
[1747657084144,2.03623067,102560.0,102550.0,0.02104805]
[1747657084339,2.03543067,102560.0,102550.0,0.02104805]
[1747657084545,2.03743067,102560.0,102550.0,0.02104805]
[1747657084998,1.4154173,102560.0,102550.0,0.02104805]
[1747657085143,1.69879067,102560.0,102550.0,0.02104805]
[1747657085545,1.63959067,102560.0,102550.0,0.02104805]
[1747657085766,2.04779067,102560.0,102550.0,0.02104805]
[1747657087182,1.63959067,102560.0,102550.0,0.02104805]
[1747657087397,1.7965173,102560.0,102550.0,0.02104805]
[1747657087616,2.04759067,102560.0,102550.0,0.02104805]
[1747657087903,1.63959067,102560.0,102550.0,0.02104805]
[1747657088131,2.04795067,102560.0,102550.0,0.02104805]
[1747657088482,1.7645773,102560.0,102550.0,0.02104805]
[1747657088713,1.4245773,102560.0,102550.0,0.02104805]
[1747657088934,1.67557067,102560.0,102550.0,0.02104805]
[1747657089945,1.67529067,102560.0,102550.0,0.02104805]
[1747657090145,1.69099067,102560.0,102550.0,0.02104805]
[1747657090579,1.28299067,102560.0,102550.0,0.02104805]
[1747657090809,1.69103067,102560.0,102550.0,0.02104805]
[1747657091914,1.70633067,102560.0,102550.0,0.02104805]
[1747657092899,1.70585067,102560.0,102550.0,0.02104805]
[1747657097119,1.70509067,102560.0,102550.0,0.02104805]
[1747657097590,1.4540173,102560.0,102550.0,0.02104805]
[1747657097994,1.70509067,102560.0,102550.0,0.02104805]
[1747657098187,1.70493067,102560.0,102550.0,0.02104805]
[1747657098515,1.70485067,102560.0,102550.0,0.02104805]
[1747657098731,1.29829067,102560.0,102550.0,0.02104805]
[1747657098921,1.70477067,102560.0,102550.0,0.02104805]
[1747657109131,1.0319173,102560.0,102550.0,0.02104805]
[1747657109337,1.4207773,102560.0,102550.0,0.04474805]
[1747657111406,1.0162173,102560.0,102550.0,0.04474805]
[1747657111550,1.4205373,102560.0,102550.0,0.04463285]
[1747657111754,0.5218973,102560.0,102550.0,0.04463285]
[1747657111954,0.7220973,102560.0,102550.0,0.04463285]
[1747657113398,0.7220573,102560.0,102550.0,0.04463285]
[1747657116879,0.7220573,102560.0,102550.0,0.02093285]
[1747657117092,1.00513067,102560.0,102550.0,0.02093285]
[1747657117929,1.70353067,102560.0,102550.0,0.02093285]
[1747657119699,2.04353067,102560.0,102550.0,0.02093285]
[1747657122091,0.58587066,102530.0,102520.0,0.02]
[1747657122247,2.45429343,102530.0,102520.0,0.02004803]
[1747657122865,2.48357443,102530.0,102520.0,0.02004803]
[1747657123915,2.48457443,102530.0,102520.0,0.02104803]
[1747657124142,2.08413443,102530.0,102520.0,0.02104803]
[1747657124363,2.48433443,102530.0,102520.0,0.02104803]
[1747657124605,2.48333443,102530.0,102520.0,0.02004803]
[1747657124843,2.58064383,102530.0,102520.0,0.02004803]
[1747657125072,2.48729443,102530.0,102520.0,0.02004803]
[1747657125307,2.50160814,102530.0,102520.0,0.02004803]
[1747657125530,2.50660814,102530.0,102520.0,0.02004803]
[1747657126643,2.75768151,102530.0,102520.0,0.02004803]
[1747657126900,0.24541253,102510.0,102500.0,0.4687831]
[1747657127093,0.24541253,102510.0,102500.0,0.46926542]
[1747657127094,1.92732001,102510.0,102500.0,0.46926542]
[1747657128097,2.34144001,102510.0,102500.0,0.46926542]
[1747657128357,2.34744001,102510.0,102500.0,0.46926542]
[1747657128549,2.34444001,102510.0,102500.0,0.46926542]
[1747657128782,2.34144001,102510.0,102500.0,0.46926542]
[1747657129058,2.34544001,102510.0,102500.0,0.46926542]
[1747657129266,1.38512193,102510.0,102500.0,0.46926542]
[1747657129482,2.30190867,102510.0,102500.0,0.46926542]
[1747657129707,1.61804952,102510.0,102500.0,0.46926542]
[1747657129911,6.81580752,102510.0,102500.0,0.46926542]
[1747657130331,6.88840752,102510.0,102500.0,0.46146055]
[1747657130541,6.98571692,102510.0,102500.0,0.46146055]
[1747657130759,6.97571692,102510.0,102500.0,0.45306055]
[1747657130982,6.86904752,102510.0,102500.0,0.45306055]
[1747657131194,5.95162078,102510.0,102500.0,0.45306055]
[1747657131406,6.36306078,102510.0,102500.0,0.45306055]
[1747657131605,6.86120752,102510.0,102500.0,0.45306055]
[1747657131814,6.86720752,102510.0,102500.0,0.45306055]
[1747657132016,6.97051692,102510.0,102500.0,0.45306055]
[1747657132435,6.87320752,102510.0,102500.0,0.45306055]
[1747657133050,6.90249652,102510.0,102500.0,0.45306055]
[1747657134584,6.65142315,102510.0,102500.0,0.45306055]
[1747657134702,6.90249652,102510.0,102500.0,0.45306055]
[1747657139115,1.4387643,102510.0,102500.0,0.45306055]
[1747657139319,1.5360737,102510.0,102500.0,0.45306055]
[1747657139468,1.3126337,102510.0,102500.0,0.45306055]
[1747657139673,1.5215537,102510.0,102500.0,0.45306055]
[1747657139921,1.34347807,102510.0,102500.0,0.45306055]
[1747657140128,1.78880307,102510.0,102500.0,0.45306055]
[1747657140522,1.69169367,102510.0,102500.0,0.45306055]
[1747657140725,1.18954693,102510.0,102500.0,0.45306055]
[1747657140981,1.4113353,102510.0,102500.0,0.45306055]
[1747657141650,1.3954353,102510.0,102500.0,0.45306055]
[1747657141882,1.14436193,102510.0,102500.0,0.45306055]
[1747657142096,1.3798353,102510.0,102500.0,0.45306055]
[1747657142538,1.63090867,102510.0,102500.0,0.45306055]
[1747657143404,1.1704753,102510.0,102500.0,0.45306055]
[1747657143635,1.3801153,102510.0,102500.0,0.45306055]
[1747657143857,0.9635953,102510.0,102500.0,0.45306055]
[1747657144087,1.3803153,102510.0,102500.0,0.45306055]
[1747657144307,0.78932193,102510.0,102500.0,0.45306055]
[1747657144484,1.12932193,102510.0,102500.0,0.45306055]
[1747657144690,0.71252193,102510.0,102500.0,0.45306055]
[1747657145145,1.12912193,102510.0,102500.0,0.45306055]
[1747657145372,1.12312193,102510.0,102500.0,0.45306055]
[1747657145607,1.3741953,102510.0,102500.0,0.45306055]
[1747657145812,1.3791953,102510.0,102500.0,0.45306055]
[1747657146232,1.3731953,102510.0,102500.0,0.45306055]
[1747657146446,1.3781953,102510.0,102500.0,0.45306055]
[1747657149087,1.66196867,102510.0,102500.0,0.45306055]
[1747657149290,1.4108953,102510.0,102500.0,0.45306055]
[1747657150923,1.3945953,102510.0,102500.0,0.45306055]
[1747657151742,1.3789153,102510.0,102500.0,0.45306055]
[1747657152962,1.62998867,102510.0,102500.0,0.45306055]
[1747657153173,1.73992176,102510.0,102500.0,0.45306055]
[1747657153413,1.76921076,102510.0,102500.0,0.45306055]
[1747657154908,1.78375161,102510.0,102500.0,0.45306055]
[1747657155551,6.98150961,102510.0,102500.0,0.45306055]
[1747657159060,6.98150961,102510.0,102500.0,0.44525521]
[1747657159300,7.07881901,102510.0,102500.0,0.44525521]
[1747657159501,7.07881901,102510.0,102500.0,0.43744987]
[1747657159885,7.07881901,102510.0,102500.0,0.42964453]
[1747657160292,7.00138592,102510.0,102500.0,0.42183919]
[1747657160824,7.00138592,102510.0,102500.0,0.41403385]
[1747657161000,7.00138592,102510.0,102500.0,0.40622851]
[1747657161381,7.00138592,102510.0,102500.0,0.39842317]
[1747657161786,7.00138592,102510.0,102500.0,0.39061783]
[1747657162345,7.00138592,102510.0,102500.0,0.38281202]
[1747657163200,7.00138592,102510.0,102500.0,0.37500621]
[1747657163610,7.00138592,102510.0,102500.0,0.3672004]
[1747657164118,1.08930114,102490.0,102480.0,0.01]
[1747657164338,2.02737054,102490.0,102480.0,0.01004808]
[1747657164551,1.77629717,102490.0,102480.0,0.01004808]
[1747657164769,1.79491617,102490.0,102480.0,0.01004808]
[1747657165646,1.79591617,102490.0,102480.0,0.01004808]
[1747657166128,1.86943078,102490.0,102480.0,0.01004808]
[1747657166489,1.87920364,102490.0,102480.0,0.01004808]
[1747657167316,2.13227701,102490.0,102480.0,0.01004808]
[1747657167488,1.88120364,102490.0,102480.0,0.01004808]
[1747657167690,1.88020364,102490.0,102480.0,0.01004808]
[1747657168135,1.88320364,102490.0,102480.0,0.01004808]
[1747657168323,2.13195701,102490.0,102480.0,0.01004808]
[1747657168644,1.88088364,102490.0,102480.0,0.01004808]
[1747657169195,1.87788364,102490.0,102480.0,0.01004808]
[1747657169410,1.88288364,102490.0,102480.0,0.01004808]
[1747657170416,1.88588364,102490.0,102480.0,0.01004808]
[1747657170821,1.88288364,102490.0,102480.0,0.01004808]
[1747657171019,1.88788364,102490.0,102480.0,0.01004808]
[1747657175301,7.10018249,102490.0,102480.0,0.01004808]
[1747657176207,7.35125586,102490.0,102480.0,0.00224149]
[1747657176431,7.38103667,102490.0,102480.0,0.00224149]
[1747657176612,0.21473821,102450.0,102440.0,0.05471865]
[1747657176810,1.15332761,102450.0,102440.0,0.05486325]
[1747657177010,1.15332761,102450.0,102440.0,0.0513446]
[1747657177882,1.15432761,102450.0,102440.0,0.0513446]
[1747657178300,1.15532761,102450.0,102440.0,0.0523446]
[1747657178521,1.17019477,102450.0,102440.0,0.0523446]
[1747657179016,1.42126814,102450.0,102440.0,0.0523446]
[1747657179474,1.17019477,102450.0,102440.0,0.0523446]
[1747657179916,1.16895477,102450.0,102440.0,0.0523446]
[1747657180311,1.16995477,102450.0,102440.0,0.0523446]
[1747657180525,1.16895477,102450.0,102440.0,0.0513446]
[1747657180921,1.16995477,102450.0,102440.0,0.0523446]
[1747657181328,1.15995477,102450.0,102440.0,0.0523446]
[1747657181774,0.75023543,102450.0,102440.0,0.0523446]
[1747657181987,1.16955543,102450.0,102440.0,0.0523446]
[1747657182431,1.16951543,102450.0,102440.0,0.0523446]
[1747657183054,0.75023543,102450.0,102440.0,0.0523446]
[1747657183194,1.16951543,102450.0,102440.0,0.0523446]
[1747657186277,1.15392827,102450.0,102440.0,0.30386849]
[1747657186829,1.15392827,102450.0,102440.0,0.0523446]
[1747657187258,1.15148827,102450.0,102440.0,0.0523446]
[1747657187423,1.15148827,102450.0,102440.0,0.30386849]
[1747657188054,0.73536827,102450.0,102440.0,0.30386849]
[1747657188255,1.15164827,102450.0,102440.0,0.0523446]
[1747657197339,1.15164827,102450.0,102440.0,0.0211446]
[1747657198795,1.18234827,102450.0,102440.0,0.0211446]
[1747657201205,1.16684827,102450.0,102440.0,0.0211446]
[1747657201451,1.15164827,102450.0,102440.0,0.0211446]
[1747657203670,1.18314827,102450.0,102440.0,0.0211446]
[1747657205844,1.88154827,102450.0,102440.0,0.0211446]
[1747657206710,1.88154827,102450.0,102440.0,0.02466325]
[1747657212774,2.13307216,102450.0,102440.0,0.02466325]
[1747657213207,1.88154827,102450.0,102440.0,0.02466325]
[1747657215897,1.88154827,102450.0,102440.0,0.0211446]
[1747657217112,1.88154827,102450.0,102440.0,0.0011446]
[1747657221364,1.87910827,102450.0,102440.0,0.0011446]
[1747657222206,1.46526827,102450.0,102440.0,0.0011446]
[1747657222437,1.86056827,102450.0,102440.0,0.0011446]
[1747657222603,1.46546827,102450.0,102440.0,0.0011446]
[1747657222826,1.84532827,102450.0,102440.0,0.0011446]
[1747657223714,1.86042827,102450.0,102440.0,0.0011446]
[1747657224715,1.87662827,102450.0,102440.0,0.0011446]
[1747657235860,1.46506827,102450.0,102440.0,0.0011446]
[1747657236072,1.87626827,102450.0,102440.0,0.0011446]
[1747657238419,1.87588587,102450.0,102440.0,0.0011446]
[1747657246975,1.43338587,102450.0,102440.0,0.3313297]
[1747657247205,1.43338587,102450.0,102440.0,0.3475297]
[1747657247206,1.84294587,102450.0,102440.0,0.3475297]
[1747657247402,1.43338587,102450.0,102440.0,0.3475297]
[1747657247599,1.84326587,102450.0,102440.0,0.3638297]
[1747657248230,0.94082587,102450.0,102440.0,0.3638297]
[1747657248386,1.14494587,102450.0,102440.0,0.3638297]
[1747657248588,1.14494587,102450.0,102440.0,0.36734835]
[1747657249371,1.14374587,102450.0,102440.0,0.5324409]
[1747657249499,1.14374587,102450.0,102440.0,0.36734835]
[1747657250276,1.14358587,102450.0,102440.0,0.36734835]
[1747657250963,1.14358587,102450.0,102440.0,0.3638297]
[1747657251646,1.14354587,102450.0,102440.0,0.7038297]
[1747657251862,0.73498587,102450.0,102440.0,0.90882774]
[1747657252138,1.14350587,102450.0,102440.0,0.92835069]
[1747657252370,0.2250193,102450.0,102440.0,1.112966]
[1747657252629,0.43061944,102450.0,102440.0,0.91858936]
[1747657252855,0.22649944,102450.0,102440.0,0.91858936]
[1747657253299,0.43105944,102450.0,102440.0,0.91858936]
[1747657253501,0.22649944,102450.0,102440.0,0.92835088]
[1747657253780,0.41157802,102450.0,102440.0,0.91858936]
[1747657253969,0.41157802,102450.0,102440.0,0.58840426]
[1747657254162,0.20697802,102450.0,102440.0,0.91858936]
[1747657254318,0.41153802,102450.0,102440.0,0.91858936]
[1747657254516,0.41153802,102450.0,102440.0,0.90882774]
[1747657255987,0.41153802,102450.0,102440.0,0.91858945]
[1747657256243,0.41153802,102450.0,102440.0,0.90882774]
[1747657258090,0.41153802,102450.0,102440.0,0.71359151]
[1747657258679,0.41153802,102450.0,102440.0,0.92835088]
[1747657258892,0.41153802,102450.0,102440.0,0.57864264]
[1747657259103,0.40177717,102450.0,102440.0,0.57864264]
[1747657259301,0.40177717,102450.0,102440.0,0.58840435]
[1747657259517,0.40177717,102450.0,102440.0,0.3736446]
[1747657259722,0.40177717,102450.0,102440.0,0.57864254]
[1747657260089,0.40177717,102450.0,102440.0,0.3736446]
[1747657260270,0.40077717,102450.0,102440.0,0.3736446]
[1747657260529,0.40077717,102450.0,102440.0,0.3726446]
[1747657260726,0.40177717,102450.0,102440.0,0.57864264]
[1747657260844,0.40177717,102450.0,102440.0,0.3736446]
[1747657261055,0.40177717,102450.0,102440.0,0.57864264]
[1747657261253,0.40177717,102450.0,102440.0,0.38340641]
[1747657261767,0.40177717,102450.0,102440.0,0.3736446]
[1747657261996,0.40177717,102450.0,102440.0,0.38340641]
[1747657262260,0.40177717,102450.0,102440.0,0.3736446]
[1747657262928,0.40177717,102450.0,102440.0,0.38340641]
[1747657263156,0.01176019,102450.0,102440.0,0.62246739]
[1747657263387,0.01176009,102450.0,102440.0,0.62246739]
[1747657263613,0.02152037,102450.0,102440.0,0.62246739]
[1747657264091,0.01176009,102450.0,102440.0,0.62246739]
[1747657264330,0.02152037,102450.0,102440.0,0.62246739]
[1747657265060,0.03128084,102450.0,102440.0,0.62246739]
[1747657265267,0.02152037,102450.0,102440.0,0.62246739]
[1747657265472,0.03128075,102450.0,102440.0,0.62246739]
[1747657266938,0.04104132,102450.0,102440.0,0.62246739]
[1747657268549,0.03128075,102450.0,102440.0,0.62246739]
[1747657269342,0.02152037,102450.0,102440.0,0.62246739]
[1747657269565,0.03128075,102450.0,102440.0,0.62246739]
[1747657270182,0.01176009,102450.0,102440.0,0.62246739]
[1747657270501,0.002,102450.0,102440.0,0.72977679]
[1747657271572,0.001,102450.0,102440.0,0.72877679]
[1747657272026,0.001,102450.0,102440.0,0.73077679]
[1747657272177,0.12622973,102460.0,102450.0,0.57903944]
[1747657272388,0.12622964,102460.0,102450.0,0.60983944]
[1747657273418,0.12622964,102460.0,102450.0,0.61083944]
[1747657273777,0.12722964,102460.0,102450.0,0.61283944]
[1747657274386,0.04979664,102460.0,102450.0,0.61283944]
[1747657275008,0.24499476,102460.0,102450.0,0.61283944]
[1747657275433,0.04979664,102460.0,102450.0,0.61283944]
[1747657276687,0.03027741,102460.0,102450.0,0.61283944]
[1747657276901,0.04003693,102460.0,102450.0,0.61283944]
[1747657277079,0.04003684,102460.0,102450.0,0.61283944]
[1747657278669,0.04979703,102460.0,102450.0,0.61283944]
[1747657278837,0.04003732,102460.0,102450.0,0.61283944]
[1747657280476,0.04979694,102460.0,102450.0,0.61283944]
[1747657281306,0.04003732,102460.0,102450.0,0.61283944]
[1747657282312,0.04979703,102460.0,102450.0,0.61283944]
[1747657282529,0.0497977,102460.0,102450.0,0.61283944]
[1747657282958,0.04003789,102460.0,102450.0,0.61283944]
[1747657284757,0.0400378,102460.0,102450.0,0.61283944]
[1747657285013,0.01075904,102460.0,102450.0,0.61283944]
[1747657285228,0.22730776,102480.0,102470.0,0.20493783]
[1747657285431,0.32461716,102480.0,102470.0,0.20493783]
[1747657285645,0.0321,102480.0,102470.0,0.55947877]
[1747657285848,0.02927246,102480.0,102470.0,0.58875381]
[1747657286023,0.40741793,102490.0,102480.0,0.57897402]
[1747657286237,0.43668782,102490.0,102480.0,0.57897402]
[1747657286438,0.44644486,102490.0,102480.0,0.57897402]
[1747657286596,0.22203304,102490.0,102480.0,0.57897402]
[1747657286803,0.23178989,102490.0,102480.0,0.59826643]
[1747657287054,0.23178989,102490.0,102480.0,0.61386643]
[1747657287361,0.23178989,102490.0,102480.0,0.61401103]
[1747657287573,0.02926989,102490.0,102480.0,0.61401103]
[1747657287994,0.01951247,102490.0,102480.0,0.60425255]
[1747657288200,0.03902551,102490.0,102480.0,0.61985255]
[1747657288623,0.03902551,102490.0,102480.0,0.62085255]
[1747657288841,0.02926885,102490.0,102480.0,0.62085255]
[1747657289060,0.01951257,102490.0,102480.0,0.63085255]
[1747657289259,0.02926904,102490.0,102480.0,0.63085255]
[1747657289463,0.01951257,102490.0,102480.0,0.63085255]
[1747657289671,0.01951133,102500.0,102490.0,0.56919534]
[1747657289874,0.02926742,102500.0,102490.0,0.57895191]
[1747657290018,0.22438937,102500.0,102490.0,0.57895191]
[1747657290223,0.22438937,102500.0,102490.0,0.55943868]
[1747657290429,0.24068937,102500.0,102490.0,0.56919534]
[1747657291038,0.24068937,102500.0,102490.0,0.57895191]
[1747657291439,0.24168937,102500.0,102490.0,0.57895191]
[1747657291861,0.03126742,102500.0,102490.0,0.24870829]
[1747657292058,0.22638937,102500.0,102490.0,0.24870829]
[1747657292554,0.22538937,102500.0,102490.0,0.24870829]
[1747657292791,0.22438937,102500.0,102490.0,0.23895191]
[1747657292959,0.22438937,102500.0,102490.0,0.23995191]
[1747657293172,0.24048937,102500.0,102490.0,0.24195191]
[1747657293470,0.25648937,102500.0,102490.0,0.25170838]
[1747657294399,0.25648937,102500.0,102490.0,0.22243868]
[1747657294539,0.41172053,102500.0,102490.0,0.003]
[1747657294920,0.81748053,102500.0,102490.0,0.003]
[1747657295768,0.81748053,102500.0,102490.0,0.002]
[1747657295973,0.23599783,102490.0,102480.0,0.00967968]
[1747657296180,0.33330723,102490.0,102480.0,0.00967968]
[1747657296810,0.33330723,102490.0,102480.0,0.01211892]
[1747657297013,0.33330723,102490.0,102480.0,0.01565805]
[1747657297188,0.33330723,102490.0,102480.0,0.01665805]
[1747657297397,0.33330723,102490.0,102480.0,0.01421881]
[1747657298202,0.33330723,102490.0,102480.0,0.01621881]
[1747657299553,0.33330723,102490.0,102480.0,0.01865805]
[1747657300222,0.33330723,102490.0,102480.0,0.01621881]
[1747657300408,0.33330723,102490.0,102480.0,0.00668373]
[1747657301388,0.53626723,102490.0,102480.0,0.00912297]
[1747657301635,0.54602399,102490.0,102480.0,0.2140409]
[1747657301852,0.34306399,102490.0,102480.0,0.21160166]
[1747657302223,0.33330723,102490.0,102480.0,0.21160166]
[1747657302440,0.32355038,102490.0,102480.0,0.20184376]
[1747657303769,0.32355038,102490.0,102480.0,0.55160176]
[1747657304688,0.32355038,102490.0,102480.0,0.56135966]
[1747657305007,0.32355038,102490.0,102480.0,0.57111747]
[1747657305375,0.22624098,102490.0,102480.0,0.58087518]
[1747657305784,0.23599783,102490.0,102480.0,0.57733605]
[1747657306126,0.22441135,102490.0,102480.0,0.60163385]
[1747657306264,0.22441135,102490.0,102480.0,0.59187652]
[1747657306659,0.22441135,102490.0,102480.0,0.60163404]
[1747657306863,0.25641135,102490.0,102480.0,0.60163404]
[1747657307259,0.25641135,102490.0,102480.0,0.59187652]
[1747657307500,0.24665478,102490.0,102480.0,0.59187652]
[1747657309004,0.21465478,102490.0,102480.0,0.60163395]
[1747657310218,0.00975657,102490.0,102480.0,0.60163395]
[1747657310438,0.05996695,102500.0,102490.0,0.57895182]
[1747657311468,0.00975524,102500.0,102490.0,0.57895115]
[1747657311673,0.26132371,102510.0,102500.0,0.5741448]
[1747657311898,0.27107828,102510.0,102500.0,0.58868565]
[1747657312286,0.25607828,102510.0,102500.0,0.58868565]
[1747657312894,0.47813633,102510.0,102500.0,0.58868565]
[1747657314438,0.46293633,102510.0,102500.0,0.58868565]
[1747657315237,0.47893633,102510.0,102500.0,0.58868565]
[1747657316112,0.26742205,102510.0,102500.0,0.57893032]
[1747657316716,0.26742205,102510.0,102500.0,0.58868584]
[1747657317553,0.25766767,102510.0,102500.0,0.57893032]
[1747657318977,0.02150905,102510.0,102500.0,0.58868584]
[1747657319109,0.02150905,102510.0,102500.0,0.61394127]
[1747657319110,0.02150895,102510.0,102500.0,0.61394127]
[1747657319312,0.002,102510.0,102500.0,0.61394127]
[1747657319512,0.002,102510.0,102500.0,0.62914127]
[1747657320462,0.01175438,102510.0,102500.0,0.62914127]
[1747657320674,0.02050895,102510.0,102500.0,0.62914127]
[1747657320851,0.02050895,102510.0,102500.0,0.61394127]
[1747657321050,0.02050895,102510.0,102500.0,0.61494127]
[1747657321279,0.01950905,102510.0,102500.0,0.61494127]
[1747657321777,0.01950895,102510.0,102500.0,0.61594127]
[1747657323406,0.05060895,102510.0,102500.0,0.60044127]
[1747657323601,0.24571253,102510.0,102500.0,0.35654085]
[1747657323948,0.54506193,102510.0,102500.0,0.002]
[1747657324291,0.74678193,102510.0,102500.0,0.002]
[1747657326324,0.34302193,102510.0,102500.0,0.002]
[1747657326530,0.74686193,102510.0,102500.0,0.002]
[1747657328498,0.54474193,102510.0,102500.0,0.002]
[1747657328702,0.74674193,102510.0,102500.0,0.002]
[1747657329110,0.34302193,102510.0,102500.0,0.19712195]
[1747657329286,0.42820291,102510.0,102500.0,0.002]
[1747657330164,0.42800291,102510.0,102500.0,0.53712195]
[1747657331629,0.42800291,102510.0,102500.0,0.342]
[1747657332039,0.42205786,102510.0,102500.0,0.54687804]
[1747657332245,0.42205786,102510.0,102500.0,0.56638975]
[1747657332649,0.23670962,102510.0,102500.0,0.56638975]
[1747657332866,0.24952272,102510.0,102500.0,0.57614518]
[1747657333076,0.01950962,102510.0,102500.0,0.59068603]
[1747657333377,0.02926467,102510.0,102500.0,0.59068603]
[1747657333685,0.01950905,102510.0,102500.0,0.59068603]
[1747657333866,0.01950905,102510.0,102500.0,0.60618603]
[1747657334128,0.02926391,102510.0,102500.0,0.60618603]
[1747657334535,0.01950905,102510.0,102500.0,0.60618603]
[1747657335045,0.00975438,102510.0,102500.0,0.60618603]
[1747657335213,0.01950885,102510.0,102500.0,0.62218603]
[1747657335359,0.02926352,102510.0,102500.0,0.62218603]
[1747657335556,0.01950885,102510.0,102500.0,0.62218603]
[1747657336157,0.02926342,102510.0,102500.0,0.62218603]
[1747657337741,0.25554731,102520.0,102510.0,0.56915357]
[1747657339397,0.21461253,102510.0,102500.0,0.01554085]
[1747657339621,0.24651253,102510.0,102500.0,0.01554085]
[1747657339850,0.24651253,102510.0,102500.0,0.001]
[1747657340069,0.24633366,102500.0,102490.0,0.36403357]
[1747657340277,0.06096723,102500.0,102490.0,0.55917455]
[1747657340523,0.05121133,102500.0,102490.0,0.57868825]
[1747657340718,0.24633328,102500.0,102490.0,0.57868825]
[1747657341237,0.25708928,102500.0,102490.0,0.57093159]
[1747657341461,0.25708928,102500.0,102490.0,0.36629789]
[1747657341842,0.26684537,102500.0,102490.0,0.35654085]
[1747657342024,0.25708985,102500.0,102490.0,0.35654085]
[1747657342652,0.25708985,102500.0,102490.0,0.56143887]
[1747657342870,0.25708985,102500.0,102490.0,0.57419582]
[1747657343309,0.25708985,102500.0,102490.0,0.36929789]
[1747657344641,0.21563271,102500.0,102490.0,0.58395258]
[1747657344846,0.22538842,102500.0,102490.0,0.58395258]
[1747657345049,0.02051076,102500.0,102490.0,0.61916543]
[1747657345261,0.03026619,102500.0,102490.0,0.60346543]
[1747657345468,0.22538814,102500.0,102490.0,0.60346543]
[1747657345717,0.23514395,102500.0,102490.0,0.59370905]
[1747657346335,0.23514395,102500.0,102490.0,0.60346543]
[1747657347316,0.23514395,102500.0,102490.0,0.59370905]
[1747657347933,0.23514395,102500.0,102490.0,0.60346562]
[1747657348182,0.24489985,102500.0,102490.0,0.59370915]
[1747657348601,0.22538814,102500.0,102490.0,0.59370915]
[1747657348813,0.23514395,102500.0,102490.0,0.60346553]
[1747657349017,0.23514395,102500.0,102490.0,0.60346562]
[1747657349232,0.26684395,102500.0,102490.0,0.005]
[1747657349444,0.34464306,102500.0,102490.0,0.005]
[1747657351713,0.54568306,102500.0,102490.0,0.005]
[1747657360713,0.54568306,102500.0,102490.0,0.00445458]
[1747657361121,0.34464306,102500.0,102490.0,0.00445458]
[1747657361279,0.54524306,102500.0,102490.0,0.00445458]
[1747657362509,0.24733366,102500.0,102490.0,0.37850923]
[1747657362710,0.001,102500.0,102490.0,0.62516325]
[1747657362908,0.02051076,102500.0,102490.0,0.62516325]
[1747657363311,0.02051067,102500.0,102490.0,0.62516325]
[1747657363685,0.03026619,102500.0,102490.0,0.62516325]
[1747657364261,0.001,102500.0,102490.0,0.62516325]
[1747657364471,0.22715371,102520.0,102510.0,0.55461291]
[1747657364684,0.22434492,102520.0,102510.0,0.57412214]
[1747657364912,0.04876913,102520.0,102510.0,0.57412214]
[1747657365123,0.03901504,102520.0,102510.0,0.57412214]
[1747657365328,0.04876913,102520.0,102510.0,0.57412214]
[1747657365761,0.01175343,102520.0,102510.0,0.58966299]
[1747657366027,0.02150695,102520.0,102510.0,0.58966299]
[1747657366198,0.04201447,102520.0,102510.0,0.58966299]
[1747657366941,0.03226057,102520.0,102510.0,0.58966299]
[1747657367163,0.04201447,102520.0,102510.0,0.58966299]
[1747657367370,0.04201438,102520.0,102510.0,0.58966299]
[1747657367815,0.04201438,102520.0,102510.0,0.59932845]
[1747657368088,0.05176828,102520.0,102510.0,0.59932845]
[1747657368263,0.05176838,102520.0,102510.0,0.59932845]
[1747657369287,0.04201438,102520.0,102510.0,0.59932845]
[1747657369498,0.05176838,102520.0,102510.0,0.59932845]
[1747657369699,0.04201438,102520.0,102510.0,0.59932845]
[1747657369997,0.05176838,102520.0,102510.0,0.59932845]
[1747657370516,0.04201438,102520.0,102510.0,0.59932845]
[1747657370725,0.05176838,102520.0,102510.0,0.59932845]
[1747657370929,0.04201438,102520.0,102510.0,0.59932845]
[1747657371343,0.05176838,102520.0,102510.0,0.59932845]
[1747657372120,0.04976838,102520.0,102510.0,0.59832845]
[1747657372251,0.04001438,102520.0,102510.0,0.59832845]
[1747657372599,0.04001438,102520.0,102510.0,0.60132845]
[1747657372790,0.04001438,102520.0,102510.0,0.60432845]
[1747657373207,0.02050695,102520.0,102510.0,0.60432845]
[1747657373412,0.001,102520.0,102510.0,0.62022845]
[1747657373967,0.001,102520.0,102510.0,0.63562845]
[1747657375771,0.01075343,102520.0,102510.0,0.63562845]
[1747657375971,0.01075352,102520.0,102510.0,0.60432845]
[1747657376144,0.01075333,102520.0,102510.0,0.60432845]
[1747657376357,0.001,102520.0,102510.0,0.60432845]
[1747657376723,0.01075343,102520.0,102510.0,0.60432845]
[1747657377861,0.01075343,102520.0,102510.0,0.61992845]
[1747657381109,0.001,102520.0,102510.0,0.63632845]
[1747657382430,0.04155143,102540.0,102530.0,0.56432342]
[1747657382577,0.24660282,102550.0,102540.0,0.56430155]
[1747657382785,0.06125259,102550.0,102540.0,0.56430155]
[1747657382966,0.07100364,102550.0,102540.0,0.55454993]
[1747657383205,0.26603045,102550.0,102540.0,0.55454993]
[1747657383403,0.25627987,102550.0,102540.0,0.55454993]
[1747657383609,0.25627987,102550.0,102540.0,0.55469453]
[1747657384383,0.25627987,102550.0,102540.0,0.56444634]
[1747657384597,0.25627987,102550.0,102540.0,0.54494262]
[1747657384805,0.23977805,102550.0,102540.0,0.55469472]
[1747657385015,0.23977805,102550.0,102540.0,0.56444663]
[1747657385220,0.24177805,102550.0,102540.0,0.56444663]
[1747657385944,0.037,102550.0,102540.0,0.58873929]
[1747657386143,0.02450163,102550.0,102540.0,0.59849091]
[1747657386343,0.44216513,102560.0,102550.0,0.21452901]
[1747657387267,0.24168513,102560.0,102550.0,0.22427987]
[1747657387466,0.02604981,102560.0,102550.0,0.57882053]
[1747657387702,0.04954944,102560.0,102550.0,0.57882053]
[1747657387921,0.07509963,102560.0,102550.0,0.57882053]
[1747657388293,0.08084992,102560.0,102550.0,0.57882053]
[1747657388499,0.07109963,102560.0,102550.0,0.57882053]
[1747657388682,0.26610743,102560.0,102550.0,0.57882053]